Cogmind - Beta 17 @@@ ROGUE MODE // 2026.07.27 @ 17:07:22 Player: Afro Result: Destroyed by G-34 Mercenary with Small Laser Performance ------------- Evolutions (0) 0 Regions Visited (1) 200 Robots Destroyed (12) 60 Value Destroyed (208) 208 Prototype IDs (0) 0 Alien Tech Used (0) 0 Bonus (0) 0 TOTAL SCORE: 468 Bonus ------- None Cogmind --------- Core Integrity 0/250 Matter 238/300 Energy 46/100 System Corruption 1% Temperature Cool (6) Movement Walking (120) Location -10/Materials Parts ------- > --- POWER (1) -------- (None) > --- PROPULSION (2) --- Aluminum Leg Aluminum Leg > --- UTILITY (2) ------ Small Storage Unit > --- WEAPON (2) ------- (None) > --- INVENTORY (8) ---- Flight Unit Peak State ------------ > --- POWER ------------ Ion Engine > --- PROPULSION ------- Light Treads Light Treads > --- UTILITY ---------- Small Storage Unit Light Armor Plating > --- WEAPON ----------- Assault Rifle Light Assault Rifle > --- INVENTORY -------- Ion Engine Aluminum Leg Aluminum Leg [Rating: 7] Favorites ----------- Power Ion Engine Engine Ion Engine Propulsion Light Treads Treads Light Treads Leg Aluminum Leg Flight Unit Flight Unit Utility Small Storage Unit Storage Small Storage Unit Protection Light Armor Plating Weapon Light Assault Rifle Ballistic Gun Light Assault Rifle Build | -11 -10 ------- Run | Yrd Mat Slots Evolved . | . . Power . | . . Propulsion . | . . Utility . | . . Weapon . | . . Parts Attached 12 | 6 6 Power 2 | 1 1 Engine 2 | 1 1 Core . | . . Reactor . | . . Propulsion 5 | 2 3 Treads 2 | 2 . Leg 2 | . 2 Wheel . | . . Hover . | . . Flight 1 | . 1 Utility 2 | 1 1 Device . | . . Storage 1 | 1 . Processor . | . . Hackware . | . . Protection 1 | . 1 Artifact . | . . Weapon 3 | 2 1 Energy Gun . | . . Energy Cannon . | . . Ballistic Gun 3 | 2 1 Ballistic Cannon . | . . Launcher . | . . Special Weapon . | . . Impact Weapon . | . . Slashing Weapon . | . . Piercing Weapon . | . . Special Melee Weapon . | . . Unidentified Prototypes . | . . Parts Lost 8 | . 8 Power 2 | . 2 Propulsion 2 | . 2 Utility 1 | . 1 Weapon 3 | . 3 Highest Loss Streak 7 | . 7 To Critical Strikes 1 | . 1 Average Backups 3 | 1 3 Power . | . . Propulsion 2 | 1 2 Utility . | . . Weapon . | . . Tool/Special . | . . Unused Backups . | . . Power . | . . Propulsion . | . . Utility . | . . Weapon . | . . Tool/Special . | . . Average Slot Usage (%) 87 | . 87 Engine 13 | . 13 Treads 25 | . 25 Storage 14 | . 14 Protection 5 | . 5 Ballistic Gun 26 | . 26 Peak Build Rating 7 | 6 7 Average Rating 5 | 4 6 On Entrance 3 | . 6 Avg Prop Armor Cover (%) . | . . Naked Turns . | . . Heaviest Build 16 | 13 16 Greatest Support 40 | 40 40 Greatest Overweight (x) 3 | . 3 Average Overweight (x) . | . . Largest Inventory Capacity 8 | 8 8 Average Capacity 7 | 7 8 Most Carried 5 | 3 5 Average Carried 3 | 2 3 Final Capacity 8 | 8 8 Final Carried 3 | 3 1 Class Distribution -------------------- 100% | Mutant Dominant Class ---------------- Mutant | -10/Materials Resources | -11 -10 ----------- Run | Yrd Mat Matter Collected 433 | 240 193 Remotely . | . . Salvage Created 289 | . 289 Parts 20 | . 20 Haulers Intercepted . | . . Recyclers Shooed 1 | . 1 Parts Field Recycled . | . . Retrieved Matter . | . . Parts Self-Destructed . | . . Prevented . | . . Parts Restored . | . . Kills | -11 -10 ------- Run | Yrd Mat Combat Hostiles Destroyed 11 | . 11 Guns 11 | . 11 Classes Destroyed 3 | . 3 Recycler 1 | . 1 Swarmer 8 | . 8 Grunt 3 | . 3 Best Kill Streak 5 | . 5 Combat Bots Only 5 | . 5 Max Kills in Single Turn 2 | . 2 Gunslinging 1 | . 1 Exploded . | . . Melee . | . . Uniques/NPCs Destroyed . | . . Combat | -11 -10 -------- Run | Yrd Mat Hostile Shots Fired 138 | . 138 Missed 35 | . 35 Hits 103 | . 103 Projectile 103 | . 103 Critical Strikes 3 | . 3 Damage Taken 1014 | . 1014 Core 253 | . 253 Absorbed by Shields . | . . Core Remaining (%) 100 | 100 . Volleys Fired 64 | 2 62 Largest 2 | 2 2 Hottest 40 | 40 40 Shots Fired 117 | 4 113 Gun 117 | 4 113 Cannon . | . . Launcher . | . . Special . | . . Kinetic 117 | 4 113 Thermal . | . . Explosive . | . . Electromagnetic . | . . Robot Hit Streak 12 | 2 12 Robot Miss Streak 4 | 1 4 Penetration Max . | . . Secondary Targets 3 | . 3 Max Gunslinging Chain 1 | . 1 Shots Hit Robots 73 | 3 70 Core Hits 21 | . 21 Critical Kills 1 | . 1 Critical Parts Destroyed . | . . Critical Strikes 1 | . 1 Destroy 1 | . 1 Melee Attacks . | . . Impact . | . . Slashing . | . . Piercing . | . . Sneak Attacks . | . . Combat Hostiles . | . . Follow-up Attacks . | . . Damage Inflicted 752 | 26 726 Guns 719 | 26 693 Cannons . | . . Explosions 33 | . 33 Melee . | . . Ramming . | . . Kinetic 719 | 26 693 Thermal . | . . Explosive . | . . Electromagnetic 33 | . 33 Impact . | . . Slashing . | . . Piercing . | . . Highest Corruption 1 | . 1 Average Corruption 1 | . 1 Corruption Purged . | . . Corruption Blocked . | . . Overload Shots . | . . Overflow Damage 11 | . 11 Projectiles . | . . Explosions 11 | . 11 Melee . | . . Knockbacks . | . . Impact . | . . Kinetic . | . . Secondary . | . . Self-Inflicted Damage 66 | . 66 Shots 2 | . 2 Rammed . | . . Targets Rammed . | . . Kicked . | . . Crushed . | . . Highest Temperature 18 | . 18 Average Temperature 7 | . 7 Received Heat Transfer 234 | . 234 Siege Activations . | . . Martial Activations . | . . Shielding Activations . | . . Robots Disrupted . | . . Combat Hostiles . | . . Robots Corrupted . | . . Combat Hostiles . | . . Parts Fried . | . . Impact Corruptions . | . . Robots Melted . | . . Combat Hostiles . | . . Parts Melted . | . . Heat Transferred . | . . Parts Sabotaged . | . . Parts Stolen . | . . Parts Stripped . | . . Power Chain Reactions 1 | . 1 Alert | -11 -10 ------- Run | Yrd Mat Maximum Alert Level . | . . Low Security (%) 100 | 100 100 Level 1 . | . . Level 2 . | . . Level 3 . | . . Level 4 . | . . Level 5 . | . . High Security . | . . Max Security . | . . Peak Influence 188 | . 188 Initial . | . . Average 35 | . 41 Influence Increases 378 | . 378 Destroy 0b10 Robot/C 220 | . 220 Destroy 0b10 Robot/NC 5 | . 5 Destroy Leader 30 | . 30 Disable Machine 30 | . 30 Destroy Structure 3 | . 3 Lose Combat Pursuer 90 | . 90 Influence Decreases 190 | . 190 Time Decay 110 | . 110 Lost Part 80 | . 80 Squads Dispatched 1 | . 1 Investigation . | . . Extermination . | . . Reinforcement 1 | . 1 Assault . | . . Garrison . | . . Intercept . | . . Searches Triggered . | . . Construction Impeded . | . . Haulers Reinforced . | . . Active Scanning Responses . | . . Cargo Convoy Interrupts . | . . Stealth | -11 -10 --------- Run | Yrd Mat Distress Signals 2 | . 2 Communications Jammed . | . . Distress Signals . | . . Times Spotted 20 | . 20 Peak Tracking Total 7 | . 7 Tactical Retreats 4 | . 4 Traps | -11 -10 ------- Run | Yrd Mat Traps Triggered . | . . Indirectly . | . . Trap Hack Attempts . | . . Triggered . | . . Disarmed . | . . Reprogrammed . | . . Reused . | . . Traps Extracted . | . . Installed . | . . Triggered . | . . Machines | -11 -10 ---------- Run | Yrd Mat Machines Disabled 2 | . 2 Max in Single Turn 2 | . 2 Machines Repaired . | . . Machines Dismantled . | . . Machines Sabotaged . | . . Overloaded Fab Kills . | . . Hacking | -11 -10 --------- Run | Yrd Mat Machines Accessed . | . . Terminals . | . . Fabricators . | . . Repair Stations . | . . Recycling Units . | . . Scanalyzers . | . . Garrison Access . | . . Total Hacks . | . . Successful . | . . Failed . | . . Catastrophic . | . . Database Lockouts . | . . Manual . | . . Terminals . | . . Fabricators . | . . Repair Stations . | . . Recycling Units . | . . Scanalyzers . | . . Garrison Access . | . . Terminal Hacks . | . . Fabricator Hacks . | . . Repair Station Hacks . | . . Recycling Unit Hacks . | . . Scanalyzer . | . . Garrison Access Hacks . | . . Unauthorized Hacks . | . . Terminals . | . . Fabricators . | . . Repair Stations . | . . Recycling Units . | . . Scanalyzers . | . . Garrison Access . | . . Data Cores Recovered . | . . Used . | . . Hacking Detections . | . . Full Trace Events . | . . Feedback Events . | . . Feedback Blocked . | . . Robot Schematics Acquired . | . . Robots Built . | . . Authchips . | . . Time . | . . Total Robot Build Rating . | . . Part Schematics Acquired . | . . Parts Built . | . . Authchips . | . . Time . | . . Total Part Build Rating . | . . Part Studies Acquired . | . . Parts Repaired . | . . Time . | . . Parts Recycled . | . . Recycled Matter . | . . Retrieved Matter . | . . Retrieved Components . | . . Parts Scanalyzed . | . . Part Schematics Acquired . | . . Parts Damaged . | . . Bothacking | -11 -10 ------------ Run | Yrd Mat Used RIF Installer . | . . Robots Hacked . | . . Non-combat . | . . Combat . | . . Robot Hacks Applied . | . . Relay Couplers Released . | . . Fabnet Peak Effective % . | . . Robots Rewired . | . . Allies Hacked . | . . Hacks Repelled . | . . Allies | -11 -10 -------- Run | Yrd Mat Total Allies . | . . Largest Group . | . . Highest-Rated Group . | . . Highest-Rated Ally . | . . Total Orders . | . . Ally Attacks . | . . Total Damage . | . . Kills . | . . Allies Corrupted . | . . Allies Melted . | . . Intel | -11 -10 ------- Run | Yrd Mat Active Infowar (turns) . | . . Robot Analysis Total . | . . Derelict Logs Recovered . | . . Drone Launches . | . . Drone Recoveries . | . . Exploration | -11 -10 ------------- Run | Yrd Mat Turns Passed 471 | 73 398 Spaces Moved 166 | 36 130 Core 5 | 1 4 Treads 160 | 35 125 Legs 1 | . 1 Wheels . | . . Hover . | . . Flight . | . . Fastest Speed 50 | 50 120 Average Speed 160 | 156 160 Slowest Speed 200 | 160 200 Overloaded Moves . | . . Propulsion Burnouts . | . . Robots Hopped . | . . Potential Cave-ins . | . . Cave-ins Triggered . | . . Exploration Rate (%) 16 | 4 29 Regions Visited 1 Branch Regions . Pre-discovered Areas . | . . Known Exits Taken . | . . Unknown Exits Taken 1 | 1 . Scrap Searched . | . . Spaces Dug . | . . Terrain Destroyed 1 | . 1 Melee . | . . Projectile . | . . AOE 1 | . 1 Terrain Rammed . | . . Walls Destroyed . | . . Machines Disabled . | . . Actions | -11 -10 --------- Run | Yrd Mat Total 265 | 46 219 Wait 17 | . 17 Move 165 | 35 130 Hop . | . . Pick Up 6 | 3 3 Fast Attach 6 | 6 . Attach 5 | . 5 Detach . | . . Swap 2 | . 2 Drop . | . . Fire 64 | 2 62 Melee . | . . Ram . | . . Kick . | . . Crush . | . . Escape Stasis . | . . Rewire . | . . Trap . | . . Miscellaneous . | . . Route ------- -11/Scrapyard -10/Materials History --------- Turn | Location | Event 13 | -11/Scrapyard | Discovered new exit (range 16) 74 | -11/Scrapyard | Entered Materials 301 | -10/Materials | Build established: Mutant 403 | -10/Materials | Core integrity fell below 50% 467 | -10/Materials | Core integrity fell below 20% 472 | -10/Materials | Destroyed by G-34 Mercenary with Small Laser Last Messages --------------- 00424_ Switching to secondary target: G-34 Mercenary. 00428_ Acquired 20 matter. 00438_ Lgt. Treads destroyed. 00440_ G-34 Mercenary destroyed. 00440_ Switching to secondary target: S-10 Pest. 00442_ Acquired 34 matter. 00444_ Lgt. Treads destroyed. 00454_ Critical hit (Destroy). 00454_ Ion Engine destroyed. 00457_ S-10 Pest destroyed. 00457_ Switching to secondary target: S-10 Pest. 00457_ S-10 Pest destroyed. 00461_ Lgt. Assault Rifle destroyed. 00464_ S-10 Pest destroyed. 00468_ Neutrino Reactor explodes. 00468_ Chain reaction triggered in Corrupted Lgt. Ion Engine. 00468_ Lgt. Assault Rifle destroyed. 00468_ Destroyed Lgt. Assault Rifle. Map ----- +----------------------------------------------------+ | ?????????????????????????????????????????????????? | | ?????????????????????????????????????????????????? | | ?????????????????????????????????????????????????? | | ?????????????????????????????????????????????????? | | ?????????????????????????????????????????????????? | | ?????????????????????????????????????????????????? | | ?????????????????????????????????????????????????? | | ?????????????????????????????????????????????????? | | ?????????????????????????????????????????????????? | | ?????????????????????????????????????????????????? | | ?????????????????????????????????????????????????? | | ?????????????????????????????????????????????????? | | ?????????????????????????????????????????????????? | | ?????????????????????????????????????????????????? | | ?????????????????????????????????????????????????? | | ?????????????????????????????????????????????????? | | ?????????????????????????????????????????????????? | | ????????????????????##########???????????????????? | | ????????????????????# #???????????????????? | | ????????????????????# #???????????????????? | | ????????????????????# #####???????????????? | | ????????????????????# ; ????????????????? | | ????????????????????# ??????????????????? | | ????????????????????# [ #????? ????????????? | | ????????????????????# #???? ???????????? | | ????????????????????# @ #?? #??????????? | | ????????????????????# % #? #??????????? | | ????????????????########g##### #??????????? | | ????????????????# #% #??????????? | | ????????????????# [# = #????????????????? | | ????????????????# %!#![ #?????##+##??????? | | ????????????????# ===+%= #?????? ??????? | | ????????????????# !%####+### #?????? ??????? | | ????????????????# *#????????#?????? ?????? | | ????????????????##+##/##?????##+####+### ##+##?? | | ?????????????????# %#??????# # # #?? | | ?????????????????# #??????# """ # + " #?? | | ?????????????????# #??????# "R" + # T #?? | | ?????????????????# #??????# " " # # " #?? | | ?????????????????# #??????# """ # # #?? | | ?????????????????# #??????# """ # # ### | | ?????????????????# #??????# """ % # + + | | ?????????????????# #??????# # ###+# | | ?????????????????# #??????#####+##### #?# | | ?????????????????# #????????### ###?# #?# ##+ | | ?????????????????# #???###### #?# ### # | | ?????????????????# ##### ### + | | ?????????????????# T ####### | | ?????????????????########## #####?????# | | ??????????????????????????###### #?????????# | +----------------------------------------------------+ Best States ------------- Heat Dissipation 25 Energy Generation 10 Energy Capacity 250 Matter Stores 300 Matter Capacity 300 Sight Range 16 Terrain Scan Density 10 Armor Coverage 150 Evasion (%) 40 Recoil Reduction 2 Item Schematics ----------------- None Robot Schematics ------------------ None Fabricated ------------ Nothing Repaired ---------- Nothing Studied --------- None Alien Tech Used ----------------- None Achievements -------------- None Challenges ------------ None Game ------ Seed 7b42dffc-ea75-4f70-ab62-3ec3 Manual? 1 Play Time 00:06:33 Cumulative 23.4 hours Start 2026.07.27 @ 17:03:32 End 2026.07.27 @ 17:07:22 Sessions 1 Manual Loads 0 Difficulty Rogue Special Mode None Game No. 23 Rogue 23 Adventurer 0 Explorer 0 Win Type - Total 0 Types 0/0/0/0/0/0/0/0/0/0 Lore% 5 Gallery% 16 Achievement% 14 Wizard Run 0 Options --------- Layout 1 ASCII 0 Keyboard 0 Movement Mouse Keybinds 0 Fullscreen 2 Font 24/Smallcaps Map View 50x35 Zoom Use 0% Tactical HUD 1 Map Filters NONE Filters NONE Steam 1 RUN: a38c5498-5abf-43d8-91ba-0d2314190bfe